fUSD/lending_fUSD_20250522
["ID","MTS","AMOUNT","RATE_DAILY","PERIOD"]
[361937736,1747900260114,-420.0,0.00032876,5]
[361937737,1747900260123,-420.0,0.00032876,5]
[361937738,1747900260133,-1000.0,0.00032876,5]
[361937739,1747900260142,-420.0,0.00032876,5]
[361937740,1747900260151,-300.0,0.00032876,5]
[361937741,1747900260161,-752.87,0.00032876,5]
[361937742,1747900260170,-420.0,0.00032876,5]
[361937743,1747900260179,-420.0,0.00032876,5]
[361937744,1747900260188,-2322.24,0.00032876,5]
[361937745,1747900260198,-887.8,0.00032876,5]
[361937746,1747900260207,-420.0,0.00032876,5]
[361937747,1747900260217,-420.0,0.00032876,5]
[361937748,1747900260227,-420.0,0.00032876,5]
[361937749,1747900260236,-420.0,0.00032876,5]
[361937750,1747900260246,-519.72,0.00032876,5]
[361937751,1747900260255,-1217.03,0.00032876,5]
[361937752,1747900260264,-939.25,0.00032876,5]
[361937753,1747900260274,-593.27,0.00032876,5]
[361937754,1747900260284,-1688.37,0.00032876,5]
[361937755,1747900260294,-765.97,0.00032876,5]
[361937756,1747900260303,-420.0,0.00032876,5]
[361937757,1747900260313,-587.24,0.00032876,5]
[361937758,1747900260323,-1382.2,0.00032876,5]
[361937759,1747900260332,-518.11,0.00032876,5]
[361937760,1747900260341,-921.97,0.00032876,5]
[361937761,1747900260351,-2819.45,0.00032876,5]
[361937762,1747900260360,-747.08,0.00032876,5]
[361937763,1747900260369,-352.74126728,0.00032876,5]
[361937764,1747900260379,-422.75459218,0.00032876,5]
[361937765,1747900260388,-1124.18,0.00032876,5]
[361937766,1747900260398,-485.78,0.00032876,5]
[361937767,1747900260407,-420.0,0.00032876,5]
[361937768,1747900260417,-1920.17,0.00032876,5]
[361937769,1747900260427,-32404.81,0.00032876,5]
[361937770,1747900260436,-420.0,0.00032876,5]
[361937771,1747900260446,-420.0,0.00032876,5]
[361937772,1747900260455,-420.0,0.00032876,5]
[361937773,1747900260463,-996.82,0.00032876,5]
[361937774,1747900260473,-966.12,0.00032876,5]
[361937775,1747900260482,-1678.54,0.00032876,5]
[361937776,1747900260492,-724.31,0.00032876,5]
[361937777,1747900260501,-420.0,0.00032876,5]
[361937778,1747900260510,-1747.11,0.00032876,5]
[361937779,1747900260519,-420.0,0.00032876,5]
[361937780,1747900260530,-983.09,0.00032876,5]
[361937781,1747900260541,-994.14,0.00032876,5]
[361937782,1747900260551,-2297.77,0.00032876,5]
[361937783,1747900260561,-420.0,0.00032876,5]
[361937784,1747900260570,-420.0,0.00032876,5]
[361937785,1747900260579,-420.0,0.00032876,5]
[361937786,1747900260589,-420.0,0.00032876,5]
[361937787,1747900260598,-420.0,0.00032876,5]
[361937788,1747900260607,-420.0,0.00032876,5]
[361937789,1747900260617,-1362.31,0.00032876,5]
[361937790,1747900260628,-420.0,0.00032876,5]
[361937791,1747900260638,-420.0,0.00032876,5]
[361937792,1747900260648,-1327.64,0.00032876,5]
[361937793,1747900260657,-464.26,0.00032876,5]
[361937794,1747900260667,-420.0,0.00032876,5]
[361937795,1747900260677,-1739.53,0.00032876,5]
[361937796,1747900260687,-420.0,0.00032876,5]
[361937797,1747900260697,-420.0,0.00032876,5]
[361937798,1747900260706,-420.0,0.00032876,5]
[361937799,1747900260716,-1002.07,0.00032876,5]
[361937800,1747900260726,-647.13,0.00032876,5]
[361937801,1747900260736,-420.0,0.00032876,5]
[361937802,1747900260753,-573.19,0.00032876,5]
[361937803,1747900260763,-420.0,0.00032876,5]
[361937804,1747900260774,-420.0,0.00032876,5]
[361937805,1747900260783,-420.0,0.00032876,5]
[361937806,1747900260793,-1067.24,0.00032876,5]
[361937807,1747900260802,-420.0,0.00032876,5]
[361937808,1747900260811,-439.26,0.00032876,5]
[361937809,1747900260820,-1449.04,0.00032876,5]
[361937810,1747900260830,-549.82,0.00032876,5]
[361937811,1747900260840,-420.0,0.00032876,5]
[361937812,1747900260849,-420.0,0.00032876,5]
[361937813,1747900260859,-7947.66,0.00032876,5]
[361937814,1747900260869,-661.56,0.00032876,5]
[361937815,1747900260878,-1668.56,0.00032876,5]
[361937816,1747900260887,-420.0,0.00032876,5]
[361937817,1747900260896,-422.08560618,0.00032876,5]
[361937818,1747900260906,-401.77662717,0.00032876,5]
[361937819,1747900260916,-420.0,0.00032876,5]
[361937820,1747900260925,-554.94,0.00032876,5]
[361937821,1747900260934,-1846.4,0.00032876,5]
[361937822,1747900260944,-420.0,0.00032876,5]
[361937823,1747900260953,-468.65,0.00032876,5]
[361937824,1747900260963,-955.9,0.00032876,5]
[361937825,1747900260972,-420.0,0.00032876,5]
[361937826,1747900260982,-2030.87,0.00032876,5]
[361937827,1747900260993,-420.0,0.00032876,5]
[361937828,1747900261003,-300.26783589,0.00032876,5]
[361937829,1747900261012,-420.0,0.00032876,5]
[361937830,1747900261022,-420.0,0.00032876,5]
[361937831,1747900261032,-420.0,0.00032876,5]
[361937832,1747900261042,-420.0,0.00032876,5]
[361937833,1747900261052,-666.56,0.00032876,5]
[361937834,1747900261061,-420.0,0.00032876,5]
[361937835,1747900261071,-420.0,0.00032876,5]
[361937836,1747900261080,-420.0,0.00032876,5]
[361937837,1747900261090,-420.0,0.00032876,5]
[361937838,1747900261099,-420.0,0.00032876,5]
[361937839,1747900261109,-420.0,0.00032876,5]
[361937840,1747900261119,-496.55,0.00032876,5]
[361937841,1747900261129,-758.55,0.00032876,5]
[361937842,1747900261138,-420.0,0.00032876,5]
[361937843,1747900261148,-461.48,0.00032876,5]
[361937844,1747900261157,-420.0,0.00032876,5]
[361937845,1747900261166,-747.19,0.00032876,5]
[361937846,1747900261176,-11408.74,0.00032876,2]
[361937847,1747900261185,-420.0,0.00032876,5]
[361937848,1747900261195,-500.0,0.00032876,120]
[361937849,1747900261204,-420.0,0.00032876,5]
[361937850,1747900261213,-663.14,0.00032876,5]
[361937851,1747900261223,-962.89,0.00032876,5]
[361937852,1747900261232,-420.0,0.00032876,5]
[361937853,1747900261242,-1342.33,0.00032876,5]
[361937854,1747900261252,-420.0,0.00032876,5]
[361937855,1747900261262,-420.0,0.00032876,5]
[361937856,1747900261271,-420.0,0.00032876,5]
[361937857,1747900261281,-420.0,0.00032876,5]
[361937858,1747900261290,-521.85,0.00032876,5]
[361937859,1747900261300,-420.0,0.00032876,5]
[361937860,1747900261309,-420.0,0.00032876,5]
[361937861,1747900261320,-420.0,0.00032876,5]
[361937862,1747900261330,-1551.55,0.00032876,5]
[361937863,1747900261340,-432.13,0.00032876,5]
[361937864,1747900261349,-420.0,0.00032876,5]
[361937865,1747900261358,-420.0,0.00032876,5]
[361937866,1747900261367,-420.0,0.00032876,5]
[361937867,1747900261376,-420.0,0.00032876,5]
[361937868,1747900261387,-5318.68,0.00032876,5]
[361937869,1747900261397,-420.0,0.00032876,5]
[361937870,1747900261406,-420.0,0.00032876,5]
[361937871,1747900261416,-420.0,0.00032876,5]
[361937872,1747900261425,-420.0,0.00032876,5]
[361937873,1747900261435,-547.8687127,0.00032876,2]
[361937874,1747900261444,-420.0,0.00032876,5]
[361937875,1747900261453,-1111.84,0.00032876,5]
[361937876,1747900261463,-1111.01,0.00032876,5]
[361937877,1747900261473,-420.0,0.00032876,2]
[361937878,1747900261483,-420.0,0.00032876,5]
[361937879,1747900261493,-420.0,0.00032876,5]
[361937880,1747900261502,-420.0,0.00032876,5]
[361937881,1747900261511,-483.22,0.00032876,5]
[361937882,1747900261521,-755.7,0.00032876,5]
[361937883,1747900261530,-420.0,0.00032876,5]
[361937884,1747900261539,-420.0,0.00032876,5]
[361937885,1747900261553,-420.0,0.00032876,5]
[361937886,1747900261562,-420.0,0.00032876,5]
[361937887,1747900261571,-420.0,0.00032876,5]
[361937888,1747900261581,-585.3,0.00032876,5]
[361937889,1747900261593,-420.0,0.00032876,5]
[361937890,1747900261602,-420.0,0.00032876,5]
[361937891,1747900261612,-2709.26,0.00032876,3]
[361937892,1747900261622,-1470.36,0.00032876,5]
[361937893,1747900261632,-614.49,0.00032876,5]
[361937894,1747900261642,-420.0,0.00032876,5]
[361937895,1747900261651,-420.0,0.00032876,5]
[361937896,1747900261660,-420.0,0.00032876,5]
[361937897,1747900261671,-1875.7,0.00032876,5]
[361937898,1747900261684,-972.13,0.00032876,5]
[361937899,1747900261694,-420.0,0.00032876,5]
[361937900,1747900261704,-420.0,0.00032876,5]
[361937901,1747900261713,-420.0,0.00032876,5]
[361937902,1747900261723,-420.0,0.00032876,5]
[361937903,1747900261733,-831.11,0.00032876,5]
[361937904,1747900261743,-545.5,0.00032876,5]
[361937905,1747900261752,-420.0,0.00032876,5]
[361937906,1747900261762,-420.0,0.00032876,5]
[361937907,1747900261772,-545.5,0.00032876,5]
[361937908,1747900261783,-545.5,0.00032876,5]
[361937909,1747900261793,-545.5,0.00032876,5]
[361937910,1747900261803,-545.5,0.00032876,5]
[361937911,1747900261813,-545.5,0.00032876,5]
[361937912,1747900261823,-545.5,0.00032876,5]
[361937913,1747900261833,-420.0,0.00032876,5]
[361937914,1747900261842,-545.5,0.00032876,5]
[361937915,1747900261852,-545.5,0.00032876,5]
[361937916,1747900261861,-421.7912954,0.00032876,2]
[361937917,1747900261870,-420.0,0.00032876,5]
[361937918,1747900261880,-575.36,0.00032876,5]
[361937919,1747900261889,-420.0,0.00032876,5]
[361937920,1747900261899,-420.0,0.00032876,5]
[361937921,1747900261908,-1613.35,0.00032876,5]
[361937922,1747900261918,-1445.27,0.00032876,5]
[361937923,1747900261930,-1378.74,0.00032876,5]
[361937924,1747900261941,-2940.61,0.00032876,5]
[361937925,1747900261950,-433.64,0.00032876,5]
[361937926,1747900261960,-420.0,0.00032876,5]
[361937927,1747900261970,-560.8,0.00032876,5]
[361937928,1747900261979,-420.0,0.00032876,5]
[361937929,1747900261988,-420.0,0.00032876,5]
[361937930,1747900261998,-420.0,0.00032876,5]
[361937931,1747900262007,-1184.66,0.00032876,5]
[361937932,1747900262017,-1306.9,0.00032876,5]
[361937933,1747900262026,-420.0,0.00032876,5]
[361937934,1747900262036,-581.01,0.00032876,5]
[361937935,1747900262045,-420.0,0.00032876,5]
[361937936,1747900262054,-420.0,0.00032876,5]
[361937937,1747900262063,-420.0,0.00032876,5]
[361937938,1747900262073,-420.0,0.00032876,5]
[361937939,1747900262082,-420.0,0.00032876,5]
[361937940,1747900262091,-1286.66,0.00032876,5]
[361937941,1747900262100,-2813.99,0.00032876,5]
[361937942,1747900262111,-420.0,0.00032876,5]
[361937943,1747900262125,-899.52,0.00032876,5]
[361937944,1747900262135,-420.0,0.00032876,5]
[361937945,1747900262144,-420.0,0.00032876,5]
[361937946,1747900262155,-863.79,0.00032876,5]
[361937947,1747900262165,-420.0,0.00032876,5]
[361937948,1747900262175,-420.0,0.00032876,5]
[361937949,1747900262185,-537.53,0.00032876,5]
[361937950,1747900262195,-420.0,0.00032876,5]
[361937951,1747900262205,-420.0,0.00032876,5]
[361937952,1747900262215,-769.91,0.00032876,5]
[361937953,1747900262224,-420.0,0.00032876,5]
[361937954,1747900262233,-420.0,0.00032876,5]
[361937955,1747900262244,-2766.48,0.00032876,5]
[361937956,1747900262253,-448.47,0.00032876,5]
[361937957,1747900262263,-420.0,0.00032876,5]
[361937958,1747900262273,-420.0,0.00032876,5]
[361937959,1747900262282,-1126.19,0.00032876,5]
[361937960,1747900262292,-200.0,0.00032877,8]
[361937961,1747900262301,-3500.00000001,0.0003288,120]
[361937962,1747900262311,-153.124614,0.0003288,7]
[361937963,1747900262321,-151.0,0.0003288,7]
[361937964,1747900262330,-158.172916,0.0003288,7]
[361937965,1747900262342,-1102.81501956,0.00032895,2]
[361937966,1747900262351,-2713.17460083,0.00032896,2]
[361937967,1747900262362,-200.0,0.00032904,8]
[361937968,1747900262499,-200.0,0.00032932,8]
[361937969,1747900262515,-151.0,0.00032959,7]
[361937970,1747900262525,-200.0,0.00032959,8]
[361937971,1747900262535,-200.0,0.00032987,8]
[361937972,1747900262548,-82960.061401,0.00033,2]
[361937973,1747900262558,-300.0,0.00033,30]
[361937974,1747900262568,-2470.1571055,0.00033,5]
[361937975,1747900262577,-160.0,0.00033,2]
[361937976,1747900262587,-160.0,0.00033,2]
[361937977,1747900262596,-194.0,0.00033,2]
[361937978,1747900262606,-326.92077179,0.00033014,8]
[361937979,1747900262616,-760.059458,0.0003303,7]
[361937980,1747900262627,-760.059458,0.0003303,7]
[361937981,1747900262636,-152.927465,0.0003303,7]
[361937982,1747900262646,-1394.93414496,0.0003305,2]
[361937983,1747900262655,-387.0,0.000331,2]
[361937984,1747900262664,-2238.0,0.00033123,2]
[361937985,1747900262675,-151.0,0.00033149,7]
[361937986,1747900262686,-151.0,0.00033149,7]
[361937987,1747900262696,-156.80258,0.00033149,7]
[361937988,1747900262706,-151.0,0.00033149,7]
[361937989,1747900262716,-545.5,0.00033149,5]
[361937990,1747900262725,-545.5,0.00033149,5]
[361937991,1747900262735,-545.5,0.00033149,5]
[361937992,1747900262745,-545.5,0.00033149,5]
[361937993,1747900262754,-224.766118,0.0003315,5]
[361937994,1747900262764,-170.948772,0.0003315,5]
[361937995,1747900262774,-445.657566,0.0003315,5]
[361937996,1747900262783,-354.680787,0.0003315,5]
[361937997,1747900262793,-151.0,0.0003315,7]
[361937998,1747900262804,-189.264349,0.0003315,7]
[361937999,1747900262814,-226.053916,0.0003315,7]
[361938000,1747900262825,-226.053916,0.0003315,7]
[361938001,1747900262836,-226.053916,0.0003315,7]
[361938002,1747900262845,-420.0,0.0003315,5]
[361938003,1747900262856,-415.50920672,0.0003315,5]
[361938004,1747900262866,-420.0,0.0003315,5]
[361938005,1747900262876,-340.4899519,0.0003315,5]
[361938006,1747900262886,-371.94956114,0.0003315,5]
[361938007,1747900262897,-253.0357108,0.0003315,5]
[361938008,1747900262909,-420.0,0.0003315,5]
[361938009,1747900262920,-423.35334085,0.0003315,5]
[361938010,1747900262931,-151.0,0.0003315,7]
[361938011,1747900262940,-151.0,0.0003315,7]
[361938012,1747900262950,-420.0,0.0003315,5]
[361938013,1747900262960,-420.0,0.0003315,5]
[361938014,1747900262969,-420.0,0.0003315,5]
[361938015,1747900262979,-420.0,0.0003315,5]
[361938016,1747900262988,-1022.28,0.0003315,5]
[361938017,1747900262998,-420.0,0.0003315,5]
[361938018,1747900263008,-484.38,0.0003315,5]
[361938019,1747900263018,-420.0,0.0003315,5]
[361938020,1747900263027,-273.55110483,0.0003315,5]
[361938021,1747900263036,-582.47,0.0003315,5]
[361938022,1747900263046,-420.0,0.0003315,5]
[361938023,1747900263056,-420.0,0.0003315,5]
[361938024,1747900263065,-420.0,0.0003315,5]
[361938025,1747900263075,-420.0,0.0003315,5]
[361938026,1747900263084,-592.65,0.0003315,5]
[361938027,1747900263093,-420.0,0.0003315,5]
[361938028,1747900263103,-420.0,0.0003315,5]
[361938029,1747900263112,-990.07,0.0003315,5]
[361938030,1747900263122,-500.0,0.0003315,5]
[361938031,1747900263132,-833.96,0.0003315,5]
[361938032,1747900263142,-420.0,0.0003315,5]
[361938033,1747900263152,-548.66,0.0003315,5]
[361938034,1747900263162,-420.0,0.0003315,5]
[361938035,1747900263172,-420.0,0.0003315,5]
[361938036,1747900263182,-523.40928249,0.0003315,5]
[361938037,1747900263194,-442.76,0.0003315,5]
[361938038,1747900263205,-420.0,0.0003315,5]
[361938039,1747900263215,-420.0,0.0003315,5]
[361938040,1747900263225,-752.41,0.0003315,5]
[361938041,1747900263235,-420.0,0.0003315,5]
[361938042,1747900263245,-425.02,0.0003315,5]
[361938043,1747900263255,-420.0,0.0003315,5]
[361938044,1747900263265,-420.0,0.0003315,5]
[361938045,1747900263275,-420.0,0.0003315,5]
[361938046,1747900263285,-512.53,0.0003315,5]
[361938047,1747900263296,-420.0,0.0003315,5]
[361938048,1747900263305,-420.0,0.0003315,5]
[361938049,1747900263315,-441.95,0.0003315,5]
[361938050,1747900263324,-476.8,0.0003315,5]
[361938051,1747900263334,-672.7,0.0003315,5]
[361938052,1747900263344,-420.0,0.0003315,5]
[361938053,1747900263354,-420.0,0.0003315,5]
[361938054,1747900263364,-420.0,0.0003315,5]
[361938055,1747900263373,-276.34367971,0.0003315,5]
[361938056,1747900263383,-420.0,0.0003315,5]
[361938057,1747900263393,-726.24,0.0003315,5]
[361938058,1747900263402,-420.0,0.0003315,5]
[361938059,1747900263412,-420.0,0.0003315,5]
[361938060,1747900263421,-655.66,0.0003315,5]
[361938061,1747900263431,-420.0,0.0003315,5]
[361938062,1747900263440,-420.0,0.0003315,5]
[361938063,1747900263450,-420.0,0.0003315,5]
[361938064,1747900263460,-734.83,0.0003315,5]
[361938065,1747900263470,-420.0,0.0003315,5]
[361938066,1747900263479,-426.79,0.0003315,5]
[361938067,1747900263489,-420.0,0.0003315,5]
[361938068,1747900263499,-447.4047005,0.0003315,5]
[361938069,1747900263508,-420.0,0.0003315,5]
[361938070,1747900263519,-420.0,0.0003315,5]
[361938071,1747900263529,-301.488749,0.0003315,7]
[361938072,1747900263539,-420.0,0.0003315,5]
[361938073,1747900263553,-484.29,0.0003315,5]
[361938074,1747900263564,-420.0,0.0003315,5]
[361938075,1747900263574,-690.22,0.0003315,5]
[361938076,1747900263583,-504.84,0.0003315,5]
[361938077,1747900263594,-301.488749,0.0003315,7]
[361938078,1747900263603,-448.56,0.0003315,5]
[361938079,1747900263612,-420.0,0.0003315,5]
[361938080,1747900263622,-969.8,0.0003315,5]
[361938081,1747900263632,-420.0,0.0003315,5]
[361938082,1747900263642,-420.0,0.0003315,5]
[361938083,1747900263651,-420.0,0.0003315,5]
[361938084,1747900263660,-420.0,0.0003315,5]
[361938085,1747900263670,-151.0,0.0003315,7]
[361938086,1747900263679,-933.57,0.0003315,5]
[361938087,1747900263689,-420.0,0.0003315,5]
[361938088,1747900263699,-420.0,0.0003315,5]
[361938089,1747900263708,-1965.64,0.0003315,5]
[361938090,1747900263718,-1090.67,0.0003315,5]
[361938091,1747900263728,-420.0,0.0003315,5]
[361938092,1747900263738,-451.54,0.0003315,5]
[361938093,1747900263748,-151.0,0.0003315,7]
[361938094,1747900263758,-420.0,0.0003315,5]
[361938095,1747900263768,-420.0,0.0003315,5]
[361938096,1747900263777,-420.0,0.0003315,5]
[361938097,1747900263787,-420.0,0.0003315,5]
[361938098,1747900263796,-574.33,0.0003315,5]
[361938099,1747900263805,-420.0,0.0003315,5]
[361938100,1747900263815,-420.0,0.0003315,5]
[361938101,1747900263824,-873.75,0.0003315,5]
[361938102,1747900263834,-420.0,0.0003315,5]
[361938103,1747900263844,-1225.27,0.0003315,5]
[361938104,1747900263853,-420.0,0.0003315,5]
[361938105,1747900263863,-420.0,0.0003315,5]
[361938106,1747900263873,-420.0,0.0003315,5]
[361938107,1747900263882,-420.0,0.0003315,5]
[361938108,1747900263892,-474.04,0.0003315,5]
[361938109,1747900263901,-1150.44,0.0003315,5]
[361938110,1747900263911,-420.0,0.0003315,5]
[361938111,1747900263920,-420.0,0.0003315,5]
[361938112,1747900263930,-420.0,0.0003315,5]
[361938113,1747900263940,-260.99695187,0.0003315,5]
[361938114,1747900263949,-422.06,0.0003315,5]
[361938115,1747900263959,-420.0,0.0003315,5]
[361938116,1747900263969,-420.0,0.0003315,5]
[361938117,1747900263979,-532.83,0.0003315,5]
[361938118,1747900263989,-420.0,0.0003315,5]
[361938119,1747900263998,-420.0,0.0003315,5]
[361938120,1747900264008,-420.0,0.0003315,5]
[361938121,1747900264017,-614.89,0.0003315,5]
[361938122,1747900264027,-526.95,0.0003315,5]
[361938123,1747900264036,-151.0,0.0003315,7]
[361938124,1747900264046,-217.216018,0.0003315,7]
[361938125,1747900264055,-420.0,0.0003315,5]
[361938126,1747900264064,-420.0,0.0003315,5]
[361938127,1747900264073,-467.50605044,0.0003315,5]
[361938128,1747900264083,-420.0,0.0003315,5]
[361938129,1747900264093,-420.0,0.0003315,5]
[361938130,1747900264102,-522.17,0.0003315,5]
[361938131,1747900264111,-1034.02,0.0003315,5]
[361938132,1747900264121,-420.0,0.0003315,5]
[361938133,1747900264131,-420.0,0.0003315,5]
[361938134,1747900264140,-420.0,0.0003315,5]
[361938135,1747900264151,-420.0,0.0003315,5]
[361938136,1747900264161,-928.42,0.0003315,5]
[361938137,1747900264171,-420.0,0.0003315,5]
[361938138,1747900264181,-420.0,0.0003315,5]
[361938139,1747900264191,-420.0,0.0003315,5]
[361938140,1747900264201,-420.0,0.0003315,5]
[361938141,1747900264211,-1603.11,0.0003315,5]
[361938142,1747900264220,-506.21,0.0003315,5]
[361938143,1747900264230,-1777.9,0.0003315,5]
[361938144,1747900264248,-802.46,0.0003315,5]
[361938145,1747900264260,-156.99373,0.0003315,7]
[361938146,1747900264270,-420.0,0.0003315,5]
[361938147,1747900264279,-310.22545067,0.0003315,5]
[361938148,1747900264289,-420.0,0.0003315,5]
[361938149,1747900264299,-779.89,0.0003315,5]
[361938150,1747900264308,-979.28,0.0003315,5]
[361938151,1747900264318,-503.61,0.0003315,5]
[361938152,1747900264328,-420.0,0.0003315,5]
[361938153,1747900264337,-420.0,0.0003315,5]
[361938154,1747900264347,-420.0,0.0003315,5]
[361938155,1747900264357,-1196.94,0.0003315,5]
[361938156,1747900264367,-420.0,0.0003315,5]
[361938157,1747900264377,-420.0,0.0003315,5]
[361938158,1747900264386,-420.0,0.0003315,5]
[361938159,1747900264396,-513.74,0.0003315,5]
[361938160,1747900264406,-627.79,0.0003315,5]
[361938161,1747900264416,-420.0,0.0003315,5]
[361938162,1747900264426,-462.86,0.0003315,5]
[361938163,1747900264436,-1131.18,0.0003315,5]
[361938164,1747900264446,-602.18,0.0003315,5]
[361938165,1747900264455,-420.0,0.0003315,5]
[361938166,1747900264464,-420.0,0.0003315,5]
[361938167,1747900264474,-420.0,0.0003315,5]
[361938168,1747900264483,-421.26358032,0.0003315,5]
[361938169,1747900264493,-421.79924805,0.0003315,5]
[361938170,1747900264503,-420.0,0.0003315,5]
[361938171,1747900264512,-151.0,0.0003315,7]
[361938172,1747900264521,-420.0,0.0003315,5]
[361938173,1747900264531,-151.0,0.0003315,7]
[361938174,1747900264541,-420.0,0.0003315,5]
[361938175,1747900264552,-1364.8,0.0003315,5]
[361938176,1747900264562,-939.2,0.0003315,5]
[361938177,1747900264572,-716.43,0.0003315,5]
[361938178,1747900264581,-420.0,0.0003315,5]
[361938179,1747900264592,-420.0,0.0003315,5]
[361938180,1747900264601,-420.0,0.0003315,5]
[361938181,1747900264610,-949.83,0.0003315,5]
[361938182,1747900264620,-420.0,0.0003315,5]
[361938183,1747900264631,-1411.59,0.0003315,5]
[361938184,1747900264640,-420.0,0.0003315,5]
[361938185,1747900264650,-420.0,0.0003315,5]
[361938186,1747900264660,-420.0,0.0003315,5]
[361938187,1747900264669,-420.0,0.0003315,5]
[361938188,1747900264679,-420.0,0.0003315,5]
[361938189,1747900264689,-598.69,0.0003315,5]
[361938190,1747900264698,-420.0,0.0003315,5]
[361938191,1747900265059,-420.0,0.0003315,5]
[361938192,1747900265069,-474.5,0.0003315,5]
[361938193,1747900265078,-201.16027032,0.0003315,5]
[361938194,1747900265088,-420.0,0.0003315,5]
[361938195,1747900265097,-420.0,0.0003315,5]
[361938196,1747900265107,-420.0,0.0003315,5]
[361938197,1747900265116,-421.75099417,0.0003315,5]
[361938198,1747900265126,-446.67,0.0003315,5]
[361938199,1747900265136,-420.0,0.0003315,5]
[361938200,1747900265146,-963.35,0.0003315,5]
[361938201,1747900265156,-1228.56,0.0003315,5]
[361938202,1747900265166,-529.81,0.0003315,5]
[361938203,1747900265176,-420.0,0.0003315,5]
[361938204,1747900265186,-734.45,0.0003315,5]
[361938205,1747900265195,-420.0,0.0003315,5]
[361938206,1747900265204,-420.99077289,0.0003315,5]
[361938207,1747900265214,-420.0,0.0003315,5]
[361938208,1747900265224,-420.0,0.0003315,5]
[361938209,1747900265233,-613.0,0.0003315,5]
[361938210,1747900265244,-420.0,0.0003315,5]
[361938211,1747900265254,-1000.0,0.0003315,30]
[361938212,1747900265269,-2187.19,0.0003315,5]
[361938213,1747900265281,-522.5,0.0003315,5]
[361938214,1747900265292,-420.0,0.0003315,5]
[361938215,1747900265302,-420.0,0.0003315,5]
[361938216,1747900265312,-420.0,0.0003315,5]
[361938217,1747900265321,-420.0,0.0003315,5]
[361938218,1747900265332,-151.0,0.0003315,7]
[361938219,1747900265342,-1298.22,0.0003315,5]
[361938220,1747900265351,-151.0,0.0003315,7]
[361938221,1747900265361,-1902.61,0.0003315,5]
[361938222,1747900265371,-420.0,0.0003315,5]
[361938223,1747900265381,-637.92,0.0003315,5]
[361938224,1747900265391,-420.0,0.0003315,5]
[361938225,1747900265403,-420.0,0.0003315,5]
[361938226,1747900265412,-557.45,0.0003315,5]
[361938227,1747900265422,-420.0,0.0003315,5]
[361938228,1747900265431,-420.0,0.0003315,5]
[361938229,1747900265441,-1361.09,0.0003315,5]
[361938230,1747900265450,-420.0,0.0003315,5]
[361938231,1747900265460,-420.0,0.0003315,5]
[361938232,1747900265469,-547.72,0.0003315,5]
[361938233,1747900265479,-1081.87,0.0003315,5]
[361938234,1747900265488,-537.78,0.0003315,5]
[361938235,1747900265498,-420.0,0.0003315,5]